fUSD/lending_fUSD_20250127
["ID","MTS","AMOUNT","RATE_DAILY","PERIOD"]
[350580674,1737971431791,-169.72899921,0.00010443,2]
[350580675,1737971431800,-502.0,0.00010548,2]
[350580676,1737971431809,-891.19,0.00010622,2]
[350580677,1737971431819,-217.53,0.00010637,2]
[350580678,1737971431828,-150.0,0.00010703,2]
[350580679,1737971431838,-661.59663974,0.00010858,2]
[350580680,1737971431847,-169.72899921,0.00010858,2]
[350580681,1737971431856,-150.0,0.00010884,2]
[350580682,1737971431865,-150.0,0.00010912,2]
[350580683,1737971431875,-150.0,0.00010957,2]
[350580684,1737971431884,-500.0,0.00010958,2]
[350580685,1737971431894,-500.0,0.00010958,2]
[350580686,1737971431903,-500.0,0.00010958,2]
[350580687,1737971431912,-500.0,0.00010958,2]
[350580688,1737971431921,-500.0,0.00010958,2]
[350580689,1737971431930,-500.0,0.00010958,2]
[350580690,1737971431939,-500.0,0.00010958,2]
[350580691,1737971431949,-500.0,0.00010958,2]
[350580692,1737971431958,-500.0,0.00010958,2]
[350580693,1737971431967,-500.0,0.00010958,2]
[350580694,1737971431976,-500.0,0.00010958,2]
[350580695,1737971431986,-500.0,0.00010958,2]
[350580696,1737971431995,-500.0,0.00010958,2]
[350580697,1737971432004,-500.0,0.00010958,2]
[350580698,1737971432013,-500.0,0.00010958,2]
[350580700,1737971432022,-500.0,0.00010958,2]
[350580702,1737971432031,-500.0,0.00010958,2]
[350580704,1737971432042,-500.0,0.00010958,2]
[350580706,1737971432051,-500.0,0.00010958,2]
[350580707,1737971432061,-500.0,0.00010958,2]
[350580708,1737971432071,-500.0,0.00010958,2]
[350580710,1737971432080,-500.0,0.00010958,2]
[350580712,1737971432090,-500.0,0.00010958,2]
[350580714,1737971432100,-431.67733922,0.00010958,2]
[350580716,1737971432109,-500.0,0.00010958,2]
[350580718,1737971432118,-500.0,0.00010958,2]
[350580720,1737971432128,-500.0,0.00010958,2]
[350580722,1737971432137,-500.0,0.00010958,2]
[350580723,1737971432146,-500.0,0.00010958,2]
[350580724,1737971432155,-500.0,0.00010958,2]
[350580725,1737971432164,-500.0,0.00010958,2]
[350580726,1737971432173,-500.0,0.00010958,2]
[350580727,1737971432182,-623.72,0.00010958,2]
[350580728,1737971432192,-500.0,0.00010958,2]
[350580729,1737971432201,-500.0,0.00010958,2]
[350580730,1737971432210,-500.0,0.00010958,2]
[350580731,1737971432219,-500.0,0.00010958,2]
[350580732,1737971432229,-649.84710779,0.00010958,2]
[350580733,1737971432238,-560.58361,0.00010958,2]
[350580734,1737971432247,-500.0,0.00010958,2]
[350580735,1737971432257,-500.0,0.00010958,2]
[350580736,1737971432266,-500.0,0.00010958,2]
[350580737,1737971432275,-615.77,0.00010958,2]
[350580738,1737971432284,-500.0,0.00010958,2]
[350580739,1737971432297,-500.0,0.00010958,2]
[350580740,1737971432307,-500.0,0.00010958,2]
[350580741,1737971432316,-500.0,0.00010958,2]
[350580742,1737971432325,-500.0,0.00010958,2]
[350580743,1737971432335,-500.0,0.00010958,2]
[350580744,1737971432344,-233.27783716,0.00010958,2]
[350580745,1737971432353,-500.0,0.00010958,2]
[350580746,1737971432363,-500.0,0.00010958,2]
[350580747,1737971432373,-494.3064438,0.00010958,2]
[350580748,1737971432382,-500.0,0.00010958,2]
[350580749,1737971432391,-500.0,0.00010958,2]
[350580750,1737971432401,-500.0,0.00010958,2]
[350580751,1737971432410,-500.0,0.00010958,2]
[350580752,1737971432419,-645.5313724,0.00010958,2]
[350580753,1737971432429,-500.0,0.00010958,2]
[350580754,1737971432438,-500.0,0.00010958,2]
[350580755,1737971432448,-500.0,0.00010958,2]
[350580756,1737971432457,-500.0,0.00010958,2]
[350580757,1737971432466,-500.0,0.00010958,2]
[350580758,1737971432476,-500.0,0.00010958,2]
[350580759,1737971432485,-500.0,0.00010958,2]
[350580760,1737971432494,-500.0,0.00010958,2]
[350580761,1737971432503,-500.0,0.00010958,2]
[350580762,1737971432512,-500.0,0.00010958,2]
[350580763,1737971432521,-500.0,0.00010958,2]
[350580764,1737971432530,-500.0,0.00010958,2]
[350580765,1737971432539,-500.0,0.00010958,2]
[350580766,1737971432550,-500.0,0.00010958,2]
[350580767,1737971432559,-500.0,0.00010958,2]
[350580768,1737971432568,-500.0,0.00010958,2]
[350580769,1737971432577,-500.0,0.00010958,2]
[350580770,1737971432586,-500.0,0.00010958,2]
[350580771,1737971432597,-500.0,0.00010958,2]
[350580772,1737971432608,-500.0,0.00010958,2]
[350580773,1737971432617,-500.0,0.00010958,2]
[350580774,1737971432626,-500.0,0.00010958,2]
[350580775,1737971432635,-500.0,0.00010958,2]
[350580776,1737971432645,-500.0,0.00010958,2]
[350580777,1737971432654,-500.0,0.00010958,2]
[350580778,1737971432663,-500.0,0.00010958,2]
[350580779,1737971432674,-500.0,0.00010958,2]
[350580780,1737971432683,-500.0,0.00010958,2]
[350580781,1737971432692,-630.1452815,0.00010958,2]
[350580782,1737971432701,-500.0,0.00010958,2]
[350580783,1737971432709,-521.6316273,0.00010958,2]
[350580784,1737971432718,-264.47353235,0.00010958,2]
[350580785,1737971432727,-500.0,0.00010958,2]
[350580786,1737971432736,-365.16899999,0.00010958,2]
[350580787,1737971432745,-500.0,0.00010958,2]
[350580788,1737971432755,-231.93015428,0.00010958,2]
[350580789,1737971432765,-500.0,0.00010958,2]
[350580790,1737971432774,-500.0,0.00010958,2]
[350580791,1737971432783,-500.0,0.00010958,2]
[350580792,1737971432795,-500.0,0.00010958,2]
[350580793,1737971432805,-500.0,0.00010958,2]
[350580794,1737971432815,-500.0,0.00010958,2]
[350580795,1737971432825,-500.0,0.00010958,2]
[350580796,1737971432835,-500.0,0.00010958,2]
[350580797,1737971432844,-500.0,0.00010958,2]
[350580798,1737971432853,-500.0,0.00010958,2]
[350580799,1737971432863,-500.0,0.00010958,2]
[350580800,1737971432872,-500.0,0.00010958,2]
[350580801,1737971432882,-500.0,0.00010958,2]
[350580802,1737971432895,-500.0,0.00010958,2]
[350580803,1737971432906,-500.0,0.00010958,2]
[350580804,1737971432916,-500.0,0.00010958,2]
[350580805,1737971432925,-500.0,0.00010958,2]
[350580806,1737971432935,-500.0,0.00010958,2]
[350580807,1737971432944,-500.0,0.00010958,2]
[350580808,1737971432954,-500.0,0.00010958,2]
[350580809,1737971432964,-503.42812574,0.00010958,2]
[350580810,1737971432973,-500.0,0.00010958,2]
[350580811,1737971432983,-500.0,0.00010958,2]
[350580812,1737971432992,-500.0,0.00010958,2]
[350580813,1737971433205,-500.0,0.00010958,2]
[350580814,1737971433214,-500.0,0.00010958,2]
[350580815,1737971433224,-500.0,0.00010958,2]
[350580816,1737971433234,-500.0,0.00010958,2]
[350580817,1737971433244,-500.0,0.00010958,2]
[350580818,1737971433254,-500.0,0.00010958,2]
[350580819,1737971433266,-500.0,0.00010958,2]
[350580820,1737971433276,-500.0,0.00010958,2]
[350580821,1737971433286,-500.0,0.00010958,2]
[350580822,1737971433302,-500.0,0.00010958,2]
[350580823,1737971433311,-500.0,0.00010958,2]
[350580824,1737971433321,-500.0,0.00010958,2]
[350580825,1737971433331,-500.0,0.00010958,2]
[350580826,1737971433341,-500.0,0.00010958,2]
[350580827,1737971433354,-500.0,0.00010958,2]
[350580828,1737971433364,-500.0,0.00010958,2]
[350580829,1737971433373,-462.93494504,0.00010958,2]
[350580830,1737971433383,-500.0,0.00010958,2]
[350580831,1737971433393,-500.0,0.00010958,2]
[350580832,1737971433403,-500.0,0.00010958,2]
[350580833,1737971433412,-500.0,0.00010958,2]
[350580834,1737971433422,-500.0,0.00010958,2]
[350580835,1737971433431,-500.0,0.00010958,2]
[350580836,1737971433441,-500.0,0.00010958,2]
[350580837,1737971433450,-500.0,0.00010958,2]
[350580838,1737971433460,-500.0,0.00010958,2]
[350580839,1737971433469,-500.0,0.00010958,2]
[350580840,1737971433479,-500.0,0.00010958,2]
[350580841,1737971433488,-500.0,0.00010958,2]
[350580842,1737971433498,-540.26,0.00010958,2]
[350580843,1737971433508,-500.0,0.00010958,2]
[350580844,1737971433517,-500.0,0.00010958,2]
[350580845,1737971433528,-500.0,0.00010958,2]
[350580846,1737971433537,-500.0,0.00010958,2]
[350580847,1737971433550,-500.0,0.00010958,2]
[350580848,1737971433560,-500.0,0.00010958,2]
[350580849,1737971433569,-500.0,0.00010958,2]
[350580850,1737971433579,-500.0,0.00010958,2]
[350580851,1737971433590,-500.0,0.00010958,2]
[350580852,1737971433601,-500.0,0.00010958,2]
[350580853,1737971433611,-500.0,0.00010958,2]
[350580854,1737971433620,-500.0,0.00010958,2]
[350580855,1737971433631,-500.0,0.00010958,2]
[350580856,1737971433641,-500.0,0.00010958,2]
[350580857,1737971433650,-400.0,0.00010958,2]
[350580858,1737971433660,-505.40540494,0.00010958,2]
[350580859,1737971433669,-521.83051057,0.00010958,2]
[350580860,1737971433679,-423.83901992,0.00010958,2]
[350580861,1737971433689,-500.0,0.00010958,2]
[350580862,1737971433698,-369.01229466,0.00010958,2]
[350580863,1737971433708,-219.17988953,0.00010958,2]
[350580864,1737971433717,-150.0,0.00010959,2]
[350580865,1737971433727,-150.0,0.00010998,2]
[350580866,1737971433736,-462.01,0.00011041,2]
[350580867,1737971433746,-500.0,0.00011067,2]
[350580868,1737971433757,-571.07315369,0.00011067,2]
[350580869,1737971433768,-500.0,0.00011067,2]
[350580870,1737971433778,-500.0,0.00011067,2]
[350580871,1737971433788,-500.0,0.00011067,2]
[350580872,1737971433800,-500.0,0.00011067,2]
[350580873,1737971433810,-590.54237562,0.00011067,2]
[350580874,1737971433820,-500.0,0.00011067,2]
[350580875,1737971433830,-500.0,0.00011067,2]
[350580876,1737971433840,-972.6,0.00011067,2]
[350580877,1737971433849,-500.0,0.00011067,2]
[350580878,1737971433859,-500.0,0.00011067,2]
[350580879,1737971433869,-159.339857,0.00011067,2]
[350580880,1737971433879,-500.0,0.00011067,2]
[350580881,1737971433889,-500.0,0.00011067,2]
[350580882,1737971433899,-500.0,0.00011067,2]
[350580883,1737971433909,-500.0,0.00011067,2]
[350580884,1737971433918,-500.0,0.00011067,2]
[350580885,1737971433928,-547.77,0.00011067,2]
[350580886,1737971433938,-169.494039,0.00011067,2]
[350580887,1737971433948,-500.0,0.00011067,2]
[350580888,1737971433957,-578.38,0.00011067,2]
[350580889,1737971433967,-500.0,0.00011067,2]
[350580890,1737971433977,-500.0,0.00011067,2]
[350580891,1737971433986,-500.0,0.00011067,2]
[350580892,1737971433995,-500.0,0.00011067,2]
[350580893,1737971434005,-500.0,0.00011067,2]
[350580894,1737971434014,-606.28,0.00011067,2]
[350580895,1737971434024,-500.0,0.00011067,2]
[350580896,1737971434033,-500.0,0.00011067,2]
[350580897,1737971434045,-500.0,0.00011067,2]
[350580898,1737971434054,-500.0,0.00011067,2]
[350580899,1737971434064,-500.0,0.00011067,2]
[350580900,1737971434073,-500.0,0.00011067,2]
[350580901,1737971434084,-500.0,0.00011067,2]
[350580902,1737971434094,-500.0,0.00011067,2]
[350580903,1737971434103,-1054.81,0.00011067,2]
[350580904,1737971434112,-500.0,0.00011067,2]
[350580905,1737971434122,-500.0,0.00011067,2]
[350580906,1737971434132,-500.0,0.00011067,2]
[350580907,1737971434141,-500.0,0.00011067,2]
[350580908,1737971434151,-500.0,0.00011067,2]
[350580909,1737971434160,-500.0,0.00011067,2]
[350580910,1737971434169,-500.0,0.00011067,2]
[350580911,1737971434179,-500.0,0.00011067,2]
[350580912,1737971434189,-500.0,0.00011067,2]
[350580913,1737971434199,-500.0,0.00011067,2]
[350580914,1737971434208,-500.0,0.00011067,2]
[350580915,1737971434218,-563.07,0.00011067,2]
[350580916,1737971434227,-500.0,0.00011067,2]
[350580917,1737971434237,-500.0,0.00011067,2]
[350580918,1737971434246,-3397.96,0.00011067,2]
[350580919,1737971434256,-500.0,0.00011067,2]
[350580920,1737971434265,-500.0,0.00011067,2]
[350580921,1737971434275,-913.77,0.00011067,2]
[350580922,1737971434284,-1404.99,0.00011067,2]
[350580923,1737971434295,-500.0,0.00011067,2]
[350580924,1737971434304,-500.0,0.00011067,2]
[350580925,1737971434314,-517.27,0.00011067,2]
[350580926,1737971434323,-500.0,0.00011067,2]
[350580927,1737971434332,-500.0,0.00011067,2]
[350580928,1737971434342,-500.0,0.00011067,2]
[350580929,1737971434351,-2097.22,0.00011067,2]
[350580930,1737971434360,-500.0,0.00011067,2]
[350580931,1737971434369,-500.0,0.00011067,2]
[350580932,1737971434378,-500.0,0.00011067,2]
[350580933,1737971434387,-618.42,0.00011067,2]
[350580934,1737971434396,-500.0,0.00011067,2]
[350580935,1737971434405,-1200.11,0.00011067,2]
[350580936,1737971434414,-500.0,0.00011067,2]
[350580937,1737971434423,-1080.74,0.00011067,2]
[350580938,1737971434432,-500.0,0.00011067,2]
[350580939,1737971434442,-500.0,0.00011067,2]
[350580940,1737971434451,-500.0,0.00011067,2]
[350580941,1737971434461,-500.0,0.00011067,2]
[350580942,1737971434471,-2554.22,0.00011067,2]
[350580943,1737971434480,-500.0,0.00011067,2]
[350580944,1737971434489,-500.0,0.00011067,2]
[350580945,1737971434498,-500.0,0.00011067,2]
[350580946,1737971434508,-500.0,0.00011067,2]
[350580947,1737971434517,-500.0,0.00011067,2]
[350580948,1737971434526,-500.0,0.00011067,2]
[350580949,1737971434535,-607.42,0.00011067,2]
[350580950,1737971434546,-500.0,0.00011067,2]
[350580951,1737971434555,-500.0,0.00011067,2]
[350580952,1737971434564,-500.0,0.00011067,2]
[350580953,1737971434573,-500.0,0.00011068,2]
[350580954,1737971434583,-500.0,0.00011068,2]
[350580955,1737971434593,-500.0,0.00011068,2]
[350580956,1737971434608,-500.0,0.00011068,2]
[350580957,1737971434617,-500.0,0.00011068,2]
[350580958,1737971434627,-500.0,0.00011068,2]
[350580959,1737971434637,-500.0,0.00011068,2]
[350580960,1737971434646,-500.0,0.00011068,2]
[350580961,1737971434655,-500.0,0.00011068,2]
[350580962,1737971434665,-564.81809682,0.00011068,2]
[350580963,1737971434676,-500.0,0.00011068,2]
[350580964,1737971434685,-500.0,0.00011068,2]
[350580965,1737971434695,-479.57056007,0.00011068,2]
[350580966,1737971434704,-500.0,0.00011068,2]
[350580967,1737971434713,-500.0,0.00011068,2]
[350580968,1737971434723,-500.0,0.00011068,2]
[350580969,1737971434733,-500.0,0.00011068,2]
[350580970,1737971434742,-500.0,0.00011068,2]
[350580971,1737971434752,-500.0,0.00011068,2]
[350580972,1737971434761,-500.0,0.00011068,2]
[350580973,1737971434770,-500.0,0.00011068,2]
[350580974,1737971434780,-500.0,0.00011068,2]
[350580975,1737971434790,-500.0,0.00011068,2]
[350580976,1737971434802,-500.0,0.00011068,2]
[350580977,1737971434812,-500.0,0.00011068,2]
[350580978,1737971434821,-500.0,0.00011068,2]
[350580979,1737971434830,-500.0,0.00011068,2]
[350580980,1737971434839,-500.0,0.00011068,2]
[350580981,1737971434848,-500.0,0.00011068,2]
[350580982,1737971434858,-500.0,0.00011068,2]
[350580983,1737971434867,-500.0,0.00011068,2]
[350580984,1737971434877,-325.69494236,0.00011068,2]
[350580985,1737971434887,-500.0,0.00011068,2]
[350580986,1737971434896,-500.0,0.00011068,2]
[350580987,1737971434906,-500.0,0.00011068,2]
[350580988,1737971434915,-500.0,0.00011068,2]
[350580989,1737971434925,-500.0,0.00011068,2]
[350580990,1737971434939,-500.0,0.00011068,2]
[350580991,1737971434952,-500.0,0.00011068,2]
[350580992,1737971434965,-500.0,0.00011068,2]
[350580993,1737971434979,-500.0,0.00011068,2]
[350580994,1737971434992,-500.0,0.00011068,2]
[350580995,1737971435004,-500.0,0.00011068,2]
[350580996,1737971435015,-500.0,0.00011068,2]
[350580997,1737971435027,-500.0,0.00011068,2]
[350580998,1737971435039,-500.0,0.00011068,2]
[350580999,1737971435055,-500.0,0.00011068,2]
[350581000,1737971435068,-500.0,0.00011068,2]
[350581001,1737971435081,-500.0,0.00011068,2]
[350581002,1737971435092,-500.0,0.00011068,2]
[350581003,1737971435105,-500.0,0.00011068,2]
[350581004,1737971435118,-500.0,0.00011068,2]
[350581005,1737971435129,-500.0,0.00011068,2]
[350581006,1737971435140,-500.0,0.00011068,2]
[350581007,1737971435152,-500.0,0.00011068,2]
[350581008,1737971435162,-500.0,0.00011068,2]
[350581009,1737971435172,-500.0,0.00011068,2]
[350581010,1737971435184,-500.0,0.00011068,2]
[350581011,1737971435196,-500.0,0.00011068,2]
[350581012,1737971435208,-500.0,0.00011068,2]
[350581013,1737971435220,-500.0,0.00011068,2]
[350581014,1737971435231,-500.0,0.00011068,2]
[350581015,1737971435243,-500.0,0.00011068,2]
[350581016,1737971435256,-500.0,0.00011068,2]
[350581017,1737971435268,-470.40063227,0.00011068,2]
[350581018,1737971435280,-500.0,0.00011068,2]
[350581019,1737971435292,-500.0,0.00011068,2]
[350581020,1737971435304,-321.4939163,0.00011068,2]
[350581021,1737971435319,-500.0,0.00011068,2]
[350581022,1737971435331,-500.0,0.00011068,2]
[350581023,1737971435342,-500.0,0.00011068,2]
[350581024,1737971435354,-500.0,0.00011068,2]
[350581025,1737971435366,-500.0,0.00011068,2]
[350581026,1737971435378,-500.0,0.00011068,2]
[350581027,1737971435389,-500.0,0.00011068,2]
[350581028,1737971435402,-500.0,0.00011068,2]
[350581029,1737971435414,-500.0,0.00011068,2]
[350581030,1737971435427,-500.0,0.00011068,2]
[350581031,1737971435439,-500.0,0.00011068,2]
[350581032,1737971435450,-500.0,0.00011068,2]
[350581033,1737971435463,-500.0,0.00011068,2]
[350581034,1737971435473,-500.0,0.00011068,2]
[350581035,1737971435483,-500.0,0.00011068,2]
[350581036,1737971435494,-4832.11,0.00011068,2]
[350581037,1737971435505,-500.0,0.00011068,2]
[350581038,1737971435518,-500.0,0.00011068,2]
[350581039,1737971435531,-500.0,0.00011068,2]
[350581040,1737971435542,-500.0,0.00011068,2]
[350581041,1737971435554,-500.0,0.00011068,2]
[350581042,1737971435565,-500.0,0.00011068,2]
[350581043,1737971435576,-500.0,0.00011068,2]
[350581044,1737971435589,-500.0,0.00011068,2]
[350581045,1737971435603,-500.0,0.00011068,2]
[350581046,1737971435616,-500.0,0.00011068,2]
[350581047,1737971435628,-500.0,0.00011068,2]
[350581048,1737971435640,-500.0,0.00011068,2]
[350581049,1737971435650,-364.92808081,0.00011068,2]
[350581050,1737971435663,-500.0,0.00011068,2]
[350581051,1737971435673,-500.0,0.00011068,2]
[350581052,1737971435684,-500.0,0.00011068,2]
[350581053,1737971435695,-500.0,0.00011068,2]
[350581054,1737971435706,-1000.0,0.00011068,2]
[350581055,1737971435717,-500.0,0.00011068,2]
[350581056,1737971435728,-500.0,0.00011068,2]
[350581057,1737971435739,-500.0,0.00011068,2]
[350581058,1737971435750,-500.0,0.00011068,2]
[350581059,1737971435761,-500.0,0.00011068,2]
[350581060,1737971435771,-500.0,0.00011068,2]
[350581061,1737971435783,-500.0,0.00011068,2]
[350581062,1737971435794,-914.39,0.00011068,2]
[350581063,1737971435805,-500.0,0.00011068,2]
[350581064,1737971435816,-500.0,0.00011068,2]
[350581065,1737971435827,-500.0,0.00011068,2]
[350581066,1737971435838,-515.03,0.00011068,2]
[350581067,1737971435849,-500.0,0.00011068,2]
[350581068,1737971435859,-500.0,0.00011068,2]
[350581069,1737971435872,-173.6,0.00011089,2]
[350581070,1737971435883,-420.0,0.00011224,2]
[350581071,1737971435894,-150.0,0.00011347,2]
[350581072,1737971435905,-150.0,0.00011456,2]
[350581073,1737971435916,-150.0,0.0001151,2]
[350581074,1737971435927,-250.76,0.00011542,2]
[350581075,1737971435938,-150.0,0.00011565,2]
[350581076,1737971435949,-500.0,0.00011595,2]
[350581077,1737971435959,-500.0,0.00011595,2]
[350581078,1737971435970,-500.0,0.00011595,2]
[350581079,1737971435981,-1000.0,0.00011595,2]
[350581080,1737971435992,-150.0,0.00011604,2]
[350581081,1737971436003,-150.0,0.00011614,2]
[350581082,1737971436013,-150.0,0.00011676,2]
[350581083,1737971436025,-150.0,0.00011686,2]
[350581084,1737971436036,-150.0,0.00011694,2]
[350581085,1737971436048,-369.18622841,0.00011717,2]
[350581086,1737971436059,-150.0,0.00011732,2]
[350581087,1737971436071,-500.0,0.00011759,2]
[350581088,1737971436082,-500.0,0.00011759,2]
[350581089,1737971436093,-500.0,0.00011759,2]
[350581090,1737971436104,-500.0,0.00011759,2]
[350581091,1737971436114,-500.0,0.00011759,2]
[350581092,1737971436125,-515.8819494,0.00011759,2]
[350581093,1737971436136,-500.0,0.00011759,2]
[350581094,1737971436147,-500.0,0.00011759,2]
[350581095,1737971436157,-500.0,0.00011759,2]
[350581096,1737971436167,-1270.0,0.00011799,2]
[350581097,1737971436178,-108491.25608438,0.00011825,2]
[350581098,1737971436189,-2415.39708621,0.00011825,2]
[350581099,1737971436199,-3065.4657187,0.00011825,2]
[350581100,1737971436210,-150.0,0.0001183,2]
[350581101,1737971436220,-9395.22299495,0.00011837,2]
[350581102,1737971436231,-3065.4657187,0.00011839,2]
[350581103,1737971436243,-2111.66265514,0.00011839,2]
[350581104,1737971436254,-2111.66265514,0.00011849,2]
[350581105,1737971436265,-3065.4657187,0.00011851,2]
[350581106,1737971436276,-108491.25608438,0.00011851,2]
[350581107,1737971436286,-2415.39708621,0.00011852,2]
[350581108,1737971436299,-9395.22299495,0.00011854,2]
[350581109,1737971436309,-2415.39708621,0.00011856,2]
[350581110,1737971436320,-200.0,0.00011857,2]
[350581111,1737971436330,-76107.29710816,0.00011864,2]
[350581112,1737971436397,-636.98179635,0.00011864,2]
[350581113,1737971436415,-2113.28286315,0.00011864,2]
[350581114,1737971436438,-774.34181465,0.00011864,2]
[350581115,1737971436466,-5108.42727843,0.00010127,2]
[350581116,1737971436479,-3249.99999999,0.00010127,2]
[350581117,1737971436493,-992.18563616,0.00010127,2]
[350581118,1737971436506,-670.67505186,0.00010127,2]
[350581119,1737971436518,-28859.35250207,0.00011864,2]
[350581120,1737971436529,-9395.22299495,0.00011867,2]
[350581121,1737971436540,-9395.22299495,0.00011868,2]
[350581122,1737971436553,-3065.4657187,0.00011869,2]
[350581123,1737971436564,-2111.66265514,0.00011872,2]
[350581124,1737971436575,-166.609,0.00011874,2]
[350581125,1737971436587,-3588.74,0.00011874,2]
[350581126,1737971436599,-500.0,0.00011876,2]
[350581127,1737971436610,-500.0,0.00011876,2]
[350581128,1737971436621,-500.0,0.00011876,2]
[350581129,1737971436632,-500.0,0.00011876,2]
[350581130,1737971436643,-500.0,0.00011876,2]
[350581131,1737971436654,-500.0,0.00011876,2]
[350581132,1737971436665,-500.0,0.00011876,2]
[350581133,1737971436677,-500.0,0.00011876,2]
[350581134,1737971436688,-1591.08611,0.0001188,2]
[350581135,1737971436699,-200.0,0.00011886,2]
[350581136,1737971436710,-2111.66265514,0.0001189,2]
[350581137,1737971436720,-3044.54336213,0.00011891,2]
[350581138,1737971436731,-31514.98898754,0.00011892,2]
[350581139,1737971436745,-801.47192151,0.00011892,2]
[350581143,1737971437580,-500.0,0.00011067,2]
[350581144,1737971437595,-173.50787932,0.00011595,2]
[350581145,1737971437635,-326.49212068,0.00011595,2]
[350581146,1737971437644,-500.0,0.00011875,2]
[350581147,1737971437654,-57142.88393469,0.00011892,2]
[350581148,1737971437691,-1403.55,0.00011892,2]
[350581149,1737971437702,-3814.61122965,0.00011892,2]
[350581150,1737971437713,-10242.20391555,0.00011892,2]
[350581151,1737971437802,-3571.54609544,0.00011892,2]
[350581152,1737971437812,-3044.54336213,0.00011893,2]
[350581153,1737971437821,-2579.37816888,0.00011894,2]
[350581154,1737971437833,-465.16519325,0.00011894,2]
[350581155,1737971437842,-3044.54336213,0.00011895,2]
[350581156,1737971437851,-3044.54336213,0.00011896,2]
[350581157,1737971437860,-3044.54336213,0.00011898,2]
[350581158,1737971437869,-3044.54336213,0.00011899,2]
[350581159,1737971437878,-157.39853122,0.00011899,2]
[350581160,1737971437887,-3044.54336213,0.000119,2]
[350581161,1737971437897,-602.32199669,0.000119,2]
[350581162,1737971437906,-779.25319804,0.000119,2]
[350581163,1737971437916,-200.0,0.00011906,2]
[350581164,1737971437925,-29629.7664749,0.00011911,2]
[350581165,1737971437937,-850.62647732,0.00011911,2]
[350581166,1737971437948,-10385.8640401,0.00011911,2]
[350581167,1737971437959,-392.16021124,0.00011911,2]
[350581171,1737971439681,-551.60159851,0.00011595,2]
[350581172,1737971439691,-171.50473438,0.00011911,2]
[350581173,1737971439702,-2918.09792665,0.00011911,2]
[350581174,1737971439791,-2086.98269563,0.00011911,2]
[350581175,1737971439804,-520.30377282,0.00011911,2]
[350581176,1737971439952,-932.08,0.00011067,2]
[350581178,1737971439962,-48694.41999999,0.00011911,2]
[350581199,1737971440194,-500.0,0.00011911,2]
[350581201,1737971440205,-512.35152802,0.00011911,2]
[350581203,1737971440216,-11829.17822333,0.00011911,2]
[350581205,1737971440225,-150.0,0.00011912,2]
[350581207,1737971440235,-2415.39708621,0.00011914,2]
[350581209,1737971440244,-9395.22299495,0.00011917,2]
[350581211,1737971440253,-2111.66265514,0.00011917,2]
[350581213,1737971440262,-2415.39708621,0.00011918,2]
[350581215,1737971440271,-2429.44192496,0.00011919,2]
[350581319,1737971443286,-500.0,0.00011067,2]
[350581321,1737971443295,-500.0,0.00011595,2]
[350581323,1737971443307,-4341.68149778,0.000119,2]
[350581325,1737971443315,-636.02379374,0.00011919,2]